Cogmind - Beta 13 @@@ ROGUE MODE // 2024.05.30 @ 18:08:06 Player: saltine Result: Destroyed by 0K-ZKY(l) with Ripper Performance ------------- Evolutions (3) 1500 Regions Visited (9) 1800 Robots Destroyed (28) 140 Value Destroyed (935) 935 Prototype IDs (25) 500 Alien Tech Used (0) 0 Bonus (1142) 1142 TOTAL SCORE: 6017 Bonus ------- Pacifist 270 Follower Combat Kills 320 Aligned with FarCom 300 Met Imprinter 300 Friendly Fire -48 Cogmind --------- Core Integrity 0/700 Matter 115/300 Energy 100/100 System Corruption 6% Temperature Cool (18) Movement Core (50) Location -7/Zion Parts ------- > --- POWER (2) -------- (None) > --- PROPULSION (4) --- (None) > --- UTILITY (5) ------ (None) > --- WEAPON (2) ------- (None) > --- INVENTORY (5) ---- Light Deuterium Engine Self-destruct Interrupter (50) Peak State ------------ > --- POWER ------------ Light Deuterium Engine Makeshift Power Source > --- PROPULSION ------- Carbon-fiber Leg Improved Carbon-fiber Leg Makeshift Leg Makeshift Leg > --- UTILITY ---------- Hacking Suite Hacking Suite Makeshift Hacking Suite Bomb Factory No. 2 > --- WEAPON ----------- Heavy Rocket Launcher Field Lobotomy Kit > --- INVENTORY -------- Light Deuterium Engine Heavy Riot Gun Slug Cannon Improved Grenade Launcher Self-destruct Interrupter [Rating: 59] Favorites ----------- Power Light Deuterium Engine Engine Light Deuterium Engine Power Core Light Nuclear Core Propulsion Light Treads Treads Light Treads Leg Carbon-fiber Leg Flight Unit Cesium-ion Thruster Utility Improved Targeting Computer Device Advanced Weight Redist. System Storage Small Storage Unit Processor Improved Targeting Computer Hackware Hacking Suite Protection Improved Light Armor Plating Weapon Field Lobotomy Kit Energy Gun Small Laser Energy Cannon Guided Plasma Cannon Ballistic Gun Assault Rifle Ballistic Cannon Assault Cannon Launcher Heavy Rocket Launcher Special Weapon Field Lobotomy Kit Build | -11 -10 -10 -10 -9 -8 -7 -7 -7 -7 ------- Run | Yrd Mat Min Exi Min Mat Fac Low Low Zio Slots Evolved 6 | . . . . . 4 2 . . . Power 1 | . . . . . . 1 . . . Propulsion 2 | . . . . . 2 . . . . Utility 3 | . . . . . 2 1 . . . Weapon . | . . . . . . . . . . Parts Attached 44 | 6 1 . 5 . 1 12 . 6 13 Power 4 | 1 . . . . . 2 . . 1 Engine 3 | 1 . . . . . 1 . . 1 Core 1 | . . . . . . 1 . . . Reactor . | . . . . . . . . . . Propulsion 11 | 2 . . . . . 3 . 3 3 Treads 4 | 2 . . . . . . . 1 1 Leg 5 | . . . . . . 1 . 2 2 Wheel . | . . . . . . . . . . Hover . | . . . . . . . . . . Flight 2 | . . . . . . 2 . . . Utility 13 | 1 1 . 2 . 1 3 . 2 3 Device 3 | . . . 1 . . 1 . . 1 Storage 3 | 1 1 . 1 . . . . . . Processor 1 | . . . . . 1 . . . . Hackware 3 | . . . . . . . . 1 2 Protection 3 | . . . . . . 2 . 1 . Artifact . | . . . . . . . . . . Weapon 16 | 2 . . 3 . . 4 . 1 6 Energy Gun 2 | 1 . . . . . . . . 1 Energy Cannon 1 | . . . 1 . . . . . . Ballistic Gun 1 | 1 . . . . . . . . . Ballistic Cannon 3 | . . . . . . 1 . 1 1 Launcher 5 | . . . . . . 2 . . 3 Special Weapon 4 | . . . 2 . . 1 . . 1 Impact Weapon . | . . . . . . . . . . Slashing Weapon . | . . . . . . . . . . Piercing Weapon . | . . . . . . . . . . Special Melee Weapon . | . . . . . . . . . . Unidentified Prototypes 5 | . . . 3 . . . . . 2 Parts Lost 19 | . . . . . . 4 . 2 13 Power 3 | . . . . . . 1 . . 2 Propulsion 7 | . . . . . . 2 . 1 4 Utility 3 | . . . . . . . . 1 2 Weapon 6 | . . . . . . 1 . . 5 Highest Loss Streak 9 | . . . . . . 3 . 2 9 To Critical Strikes 1 | . . . . . . . . . 1 Average Slot Usage (%) 72 | . 86 100 99 100 72 56 53 52 78 Engine 8 | . 14 14 14 14 9 5 7 7 7 Treads 11 | . 28 28 28 28 18 5 . 3 6 Leg 6 | . . . . . . 3 7 6 16 Device 4 | . . . . . . 4 7 7 7 Storage 8 | . 15 28 27 28 18 5 . . . Processor 4 | . . . . . 9 7 7 7 1 Hackware 4 | . . . . . . . . . 18 Protection 2 | . . . . . . 5 7 3 3 Ballistic Gun 4 | . 14 14 14 14 9 1 . . . Ballistic Cannon 2 | . . . . . . 5 7 7 . Launcher 1 | . . . . . . 1 . . 6 Special Weapon 7 | . . . 10 14 9 4 7 7 6 Naked Turns 1 | . . . . . . . . . 1 Heaviest Build 54 | 13 15 15 22 22 22 33 21 24 54 Greatest Support 73 | 40 40 40 40 40 40 40 19 44 73 Greatest Overweight (x) 2 | 1 . . . . . 1 1 1 2 Average Overweight (x) . | . . . . . . . 1 . . Largest Inventory Capacity 8 | 8 8 8 8 8 8 8 5 5 5 Average Capacity 6 | 6 8 8 8 8 8 6 5 5 5 Most Carried 8 | 2 2 2 2 4 8 8 4 5 5 Average Carried 4 | 1 2 2 2 2 5 4 3 4 4 Final Capacity 8 | 8 8 8 8 8 8 5 5 5 5 Final Carried 8 | 2 2 2 2 4 8 3 4 5 2 Class Distribution -------------------- 71% | Mutant 17% | Derelict-Mutant 10% | Hacker-Mutant Dominant Class ---------------- Mutant | -10/Materials Mutant | -10/Mines Mutant | -10/Exiles Mutant | -9/Mines Mutant | -8/Materials Mutant | -7/Factory Mutant | -7/Lower Caves Mutant | -7/Lower Caves Derelict-Mutant | -7/Zion Resources | -11 -10 -10 -10 -9 -8 -7 -7 -7 -7 ----------- Run | Yrd Mat Min Exi Min Mat Fac Low Low Zio Matter Collected 1049 | 218 . . . 70 49 215 42 177 278 Remotely . | . . . . . . . . . . Salvage Created 483 | . . . . . 49 164 . 37 233 Parts 28 | . . . . . 2 7 . 3 16 Haulers Intercepted . | . . . . . . . . . . Recyclers Shooed . | . . . . . . . . . . Parts Field Recycled . | . . . . . . . . . . Retrieved Matter . | . . . . . . . . . . Parts Self-Destructed 14 | . . . . . . . 7 5 2 Prevented 1 | . . . . . . . . 1 . Kills | -11 -10 -10 -10 -9 -8 -7 -7 -7 -7 ------- Run | Yrd Mat Min Exi Min Mat Fac Low Low Zio Combat Hostiles Destroyed 15 | . . . . . 1 5 . 2 7 Guns 1 | . . . . . 1 . . . . Cannons 3 | . . . . . . 1 . 2 . AOE 11 | . . . . . . 4 . . 7 Classes Destroyed 8 | . . . . . 2 3 . . 3 Worker 1 | . . . . . 1 . . . . Recycler 1 | . . . . . . 1 . . . Swarmer 3 | . . . . . . 1 . 2 . Grunt 4 | . . . . . 1 3 . . . Brawler 1 | . . . . . . 1 . . . Zionite 11 | . . . . . . . . . 11 Thug 1 | . . . . . . . . . 1 Savage 1 | . . . . . . . . . 1 Butcher 1 | . . . . . . . . . 1 Mutant 4 | . . . . . . . . . 4 Best Kill Streak 7 | . . . . . 1 4 . 1 7 Combat Bots Only 3 | . . . . . 1 3 . 1 3 Max Kills in Single Turn 2 | . . . . . 1 1 . 1 2 Gunslinging . | . . . . . . . . . . Exploded 2 | . . . . . . 1 . . 2 Melee . | . . . . . . . . . . Uniques/NPCs Destroyed . | . . . . . . . . . . Combat | -11 -10 -10 -10 -9 -8 -7 -7 -7 -7 -------- Run | Yrd Mat Min Exi Min Mat Fac Low Low Zio Hostile Shots Fired 295 | . . . . . 16 77 4 16 182 Missed 116 | . . . . . 6 26 2 4 78 Damage Taken 2777 | . . . . . 155 729 29 171 1693 Core 738 | . . . . . . 105 . 12 621 Absorbed by Shields . | . . . . . . . . . . Regen/Repaired (Parts) 37 | . . . . . . . . . 37 Core Remaining (%) 100 | 100 . . . 100 100 . . . . Volleys Fired 50 | . . . . . 5 14 1 7 23 Largest 2 | . . . . . 1 2 1 1 2 Hottest 77 | . . . . . 20 77 . 44 75 Shots Fired 69 | . . . . . 5 21 3 8 32 Gun 10 | . . . . . 5 5 . . . Cannon 23 | . . . . . . 9 2 8 4 Launcher 31 | . . . . . . 6 . . 25 Special 5 | . . . . . . 1 1 . 3 Kinetic 33 | . . . . . 5 14 2 8 4 Thermal . | . . . . . . . . . . Explosive 31 | . . . . . . 6 . . 25 Electromagnetic . | . . . . . . . . . . Robot Hit Streak 8 | . . . . . 3 8 4 1 4 Robot Miss Streak 3 | . . . . . 2 2 . 3 2 Penetration Max . | . . . . . . . . . . Secondary Targets . | . . . . . . . . . . Shots Hit Robots 44 | . . . . . 3 17 1 2 21 Core Hits 49 | . . . . . 3 15 . 2 29 Critical Kills . | . . . . . . . . . . Critical Parts Destroyed . | . . . . . . . . . . Critical Strikes . | . . . . . . . . . . Melee Attacks . | . . . . . . . . . . Impact . | . . . . . . . . . . Slashing . | . . . . . . . . . . Piercing . | . . . . . . . . . . Sneak Attacks . | . . . . . . . . . . Combat Hostiles . | . . . . . . . . . . Follow-up Attacks . | . . . . . . . . . . Damage Inflicted 3459 | . . . . . 60 902 . 47 2450 Guns 91 | . . . . . 36 55 . . . Cannons 332 | . . . . . . 199 . 47 86 Explosions 3004 | . . . . . . 648 . . 2356 Melee . | . . . . . . . . . . Ramming 32 | . . . . . 24 . . . 8 Kinetic 423 | . . . . . 36 254 . 47 86 Thermal . | . . . . . . . . . . Explosive 3004 | . . . . . . 648 . . 2356 Electromagnetic . | . . . . . . . . . . Impact . | . . . . . . . . . . Slashing . | . . . . . . . . . . Piercing . | . . . . . . . . . . Highest Corruption 6 | . . . . . . 4 4 4 6 Average Corruption 3 | . . . . . . 3 4 4 4 Corruption Purged . | . . . . . . . . . . Corruption Blocked . | . . . . . . . . . . Effects 56 | . . . . . . 4 12 35 5 Message Errors 14 | . . . . . . 1 2 9 2 Matter Fused 18 | . . . . . . 1 4 12 1 Heat Flow Errors 8 | . . . . . . 1 . 6 1 Energy Discharges 3 | . . . . . . . 1 2 . Parts Fused 1 | . . . . . . . 1 . . Data Loss (minor) 8 | . . . . . . 1 2 4 1 Misfires 3 | . . . . . . . 2 1 . Alerts 1 | . . . . . . . . 1 . Overload Shots . | . . . . . . . . . . Overflow Damage 7 | . . . . . . . . . 7 Projectiles . | . . . . . . . . . . Explosions 7 | . . . . . . . . . 7 Melee . | . . . . . . . . . . Knockbacks 2 | . . . . . . 1 . . 1 Impact . | . . . . . . . . . . Kinetic 2 | . . . . . . 1 . . 1 Secondary . | . . . . . . . . . . Self-Inflicted Damage 232 | . . . . . . 127 . . 105 Shots 9 | . . . . . . 5 . . 4 Rammed 5 | . . . . . 3 . . . 2 Targets Rammed 7 | . . . . . 4 . . . 3 Kicked . | . . . . . . . . . . Crushed 2 | . . . . . 1 . . . 1 Highest Temperature 291 | . . . . . . 196 . 291 262 Average Temperature 86 | . . . . . . 52 . 137 49 Received Heat Transfer 504 | . . . . . 72 219 . . 213 Siege Activations . | . . . . . . . . . . Robots Corrupted . | . . . . . . . . . . Combat Hostiles . | . . . . . . . . . . Parts Fried . | . . . . . . . . . . Impact Corruptions . | . . . . . . . . . . Robots Melted . | . . . . . . . . . . Combat Hostiles . | . . . . . . . . . . Parts Melted 1 | . . . . . . . . . 1 Heat Transferred . | . . . . . . . . . . Parts Sabotaged . | . . . . . . . . . . Parts Stolen . | . . . . . . . . . . Parts Stripped . | . . . . . . . . . . Power Chain Reactions . | . . . . . . . . . . Alert | -11 -10 -10 -10 -9 -8 -7 -7 -7 -7 ------- Run | Yrd Mat Min Exi Min Mat Fac Low Low Zio Peak Influence 421 | . 12 4 . . 55 421 . . . Initial 24 | . . 4 . . . 24 . . . Average 71 | . 10 4 . . 13 197 . . . Maximum Alert Level 2 | . . . . . . 2 . . . Low Security (%) 86 | 100 100 100 . 100 100 58 . . . Level 1 4 | . . . . . . 14 . . . Level 2 8 | . . . . . . 27 . . . Level 3 . | . . . . . . . . . . Level 4 . | . . . . . . . . . . Level 5 . | . . . . . . . . . . High Security . | . . . . . . . . . . Max Security . | . . . . . . . . . . Squads Dispatched 7 | . 1 . . . 1 5 . . . Investigation 2 | . . . . . . 2 . . . Extermination . | . . . . . . . . . . Reinforcement 2 | . 1 . . . 1 . . . . Assault . | . . . . . . . . . . Garrison 3 | . . . . . . 3 . . . Intercept . | . . . . . . . . . . Searches Triggered . | . . . . . . . . . . Construction Impeded . | . . . . . . . . . . Haulers Reinforced . | . . . . . . . . . . Active Scanning Responses . | . . . . . . . . . . Cargo Convoy Interrupts . | . . . . . . . . . . Stealth | -11 -10 -10 -10 -9 -8 -7 -7 -7 -7 --------- Run | Yrd Mat Min Exi Min Mat Fac Low Low Zio Distress Signals . | . . . . . . . . . . Communications Jammed . | . . . . . . . . . . Distress Signals . | . . . . . . . . . . Times Spotted 75 | . . . . . 10 8 1 6 50 Peak Tracking Total 17 | . 1 . . . 6 5 1 3 17 Tactical Retreats 2 | . . . . . . . . . 2 Traps | -11 -10 -10 -10 -9 -8 -7 -7 -7 -7 ------- Run | Yrd Mat Min Exi Min Mat Fac Low Low Zio Traps Triggered 2 | . . . . . . 2 . . . Indirectly . | . . . . . . . . . . Trap Hack Attempts . | . . . . . . . . . . Triggered . | . . . . . . . . . . Disarmed . | . . . . . . . . . . Reprogrammed . | . . . . . . . . . . Reused . | . . . . . . . . . . Traps Extracted . | . . . . . . . . . . Installed . | . . . . . . . . . . Triggered . | . . . . . . . . . . Machines | -11 -10 -10 -10 -9 -8 -7 -7 -7 -7 ---------- Run | Yrd Mat Min Exi Min Mat Fac Low Low Zio Machines Disabled 16 | . . . . . . 12 . . 4 Max in Single Turn 1 | . . . . . . 1 . . 1 Machines Repaired . | . . . . . . . . . . Machines Dismantled . | . . . . . . . . . . Machines Sabotaged . | . . . . . . . . . . Overloaded Fab Kills . | . . . . . . . . . . Hacking | -11 -10 -10 -10 -9 -8 -7 -7 -7 -7 --------- Run | Yrd Mat Min Exi Min Mat Fac Low Low Zio Machines Accessed 16 | . 2 . 5 . 3 4 . 2 . Terminals 7 | . 2 . . . 2 2 . 1 . Fabricators 1 | . . . . . . 1 . . . Repair Stations . | . . . . . . . . . . Recycling Units 1 | . . . . . 1 . . . . Scanalyzers . | . . . . . . . . . . Garrison Access 1 | . . . . . . 1 . . . Total Hacks 79 | . 8 . 50 . 9 9 . 3 . Successful 61 | . 3 . 50 . 4 1 . 3 . Failed 18 | . 5 . . . 5 8 . . . Catastrophic 5 | . 1 . . . 1 3 . . . Database Lockouts . | . . . . . . . . . . Manual 16 | . 3 . 1 . 5 5 . . 2 Terminals 20 | . 8 . . . 6 5 . 1 . Fabricators 2 | . . . . . . 2 . . . Repair Stations . | . . . . . . . . . . Recycling Units 3 | . . . . . 3 . . . . Scanalyzers . | . . . . . . . . . . Garrison Access 2 | . . . . . . 2 . . . Terminal Hacks 54 | . 1 . 50 . . . . 3 . Record 52 | . . . 49 . . . . 3 . Branch Access Points 1 | . 1 . . . . . . . . Derelict Proto ID Bank 1 | . . . 1 . . . . . . Fabricator Hacks . | . . . . . . . . . . Repair Station Hacks . | . . . . . . . . . . Recycling Unit Hacks 2 | . . . . . 2 . . . . Retrieve Matter 1 | . . . . . 1 . . . . Retrieve Components 1 | . . . . . 1 . . . . Scanalyzer . | . . . . . . . . . . Garrison Access Hacks . | . . . . . . . . . . Unauthorized Hacks 5 | . 2 . . . 2 1 . . . Terminals 5 | . 2 . . . 2 1 . . . Botnet 5 | . 2 . . . 2 1 . . . Fabricators . | . . . . . . . . . . Repair Stations . | . . . . . . . . . . Recycling Units . | . . . . . . . . . . Scanalyzers . | . . . . . . . . . . Garrison Access . | . . . . . . . . . . Data Cores Recovered . | . . . . . . . . . . Used . | . . . . . . . . . . Hacking Detections 8 | . 2 . . . 2 4 . . . Full Trace Events 3 | . 1 . . . . 2 . . . Feedback Events . | . . . . . . . . . . Feedback Blocked . | . . . . . . . . . . Robot Schematics Acquired 3 | . . . . . . . . . 3 Robots Built . | . . . . . . . . . . Authchips . | . . . . . . . . . . Time . | . . . . . . . . . . Total Robot Build Rating . | . . . . . . . . . . Part Schematics Acquired 14 | . . . . . . . . . 14 Parts Built . | . . . . . . . . . . Authchips . | . . . . . . . . . . Time . | . . . . . . . . . . Total Part Build Rating . | . . . . . . . . . . Parts Repaired . | . . . . . . . . . . Time . | . . . . . . . . . . Parts Recycled . | . . . . . . . . . . Recycled Matter . | . . . . . . . . . . Retrieved Matter . | . . . . . . . . . . Retrieved Components 1 | . . . . . 1 . . . . Parts Scanalyzed . | . . . . . . . . . . Part Schematics Acquired . | . . . . . . . . . . Parts Damaged . | . . . . . . . . . . Bothacking | -11 -10 -10 -10 -9 -8 -7 -7 -7 -7 ------------ Run | Yrd Mat Min Exi Min Mat Fac Low Low Zio Used RIF Installer . | . . . . . . . . . . Robots Hacked . | . . . . . . . . . . Non-combat . | . . . . . . . . . . Combat . | . . . . . . . . . . Robot Hacks Applied . | . . . . . . . . . . Relay Couplers Released . | . . . . . . . . . . Fabnet Peak Effective % . | . . . . . . . . . . Robots Rewired . | . . . . . . . . . . Allies Hacked 2 | . . . . . . . . 1 1 Hacks Repelled . | . . . . . . . . . . Allies | -11 -10 -10 -10 -9 -8 -7 -7 -7 -7 -------- Run | Yrd Mat Min Exi Min Mat Fac Low Low Zio Total Allies 5 | . . . . . . 1 1 1 2 Largest Group 3 | . . . . . . 1 2 3 3 Highest-Rated Group 90 | . . . . . . 32 69 81 90 Highest-Rated Ally 48 | . . . . . . 32 37 37 48 Total Orders . | . . . . . . . . . . Ally Attacks 38 | . . . . . . 3 . 9 26 Total Damage 1306 | . . . . . . 264 . 359 683 Kills 21 | . . . . . . 5 . 3 13 Allies Corrupted . | . . . . . . . . . . Allies Melted . | . . . . . . . . . . Field Lobotomies 3 | . . . . . . 1 1 . 1 Intel | -11 -10 -10 -10 -9 -8 -7 -7 -7 -7 ------- Run | Yrd Mat Min Exi Min Mat Fac Low Low Zio Robot Analysis Total . | . . . . . . . . . . Derelict Logs Recovered 4 | . . . . 1 . . 1 2 . Drone Launches . | . . . . . . . . . . Drone Recoveries . | . . . . . . . . . . Exploration | -11 -10 -10 -10 -9 -8 -7 -7 -7 -7 ------------- Run | Yrd Mat Min Exi Min Mat Fac Low Low Zio Turns Passed 6496 | 61 101 39 1284 118 632 462 565 1501 1733 Spaces Moved 3961 | 37 63 25 797 73 344 371 296 983 972 Core 137 | 9 . . . . . 2 . 126 . Treads 1542 | 28 63 25 797 73 344 79 . 115 18 Legs 2106 | . . . . . . 114 296 742 954 Wheels . | . . . . . . . . . . Hover . | . . . . . . . . . . Flight 176 | . . . . . . 176 . . . Fastest Speed 34 | 50 160 160 160 160 160 34 190 100 126 Average Speed 156 | 138 160 160 160 160 160 109 190 149 168 Slowest Speed 260 | 160 160 160 160 160 160 190 190 190 260 Overloaded Moves . | . . . . . . . . . . Propulsion Burnouts . | . . . . . . . . . . Robots Hopped . | . . . . . . . . . . Cave-ins Triggered . | . . . . . . . . . . Exploration Rate (%) 39 | 4 17 11 94 15 26 12 44 97 78 Regions Visited 9 Branch Regions 6 Pre-discovered Areas 3 | . . . 1 . . . . 1 1 Known Exits Taken 1 | . 1 . . . . . . . . Unknown Exits Taken 8 | 1 . 1 1 1 1 1 1 1 . Scrap Searched 12 | . . . . 3 . . 3 4 2 Spaces Dug . | . . . . . . . . . . Terrain Destroyed 55 | . . . . . . 37 2 1 15 Melee . | . . . . . . . . . . Projectile 3 | . . . . . . . 2 1 . AOE 52 | . . . . . . 37 . . 15 Terrain Rammed . | . . . . . . . . . . Walls Destroyed . | . . . . . . . . . . Machines Disabled . | . . . . . . . . . . Actions | -11 -10 -10 -10 -9 -8 -7 -7 -7 -7 --------- Run | Yrd Mat Min Exi Min Mat Fac Low Low Zio Total 4167 | 44 63 24 806 74 418 408 297 1009 1024 Wait 72 | . . . . . 60 . . 9 3 Move 3952 | 36 62 24 796 72 343 370 295 982 972 Hop . | . . . . . . . . . . Pick Up 16 | 2 . . . 2 5 2 1 3 1 Fast Attach 31 | 6 1 . 5 . . 5 . 5 9 Attach 10 | . . . . . 1 5 . 1 3 Detach 2 | . . . . . . 1 . . 1 Swap 4 | . . . . . . 2 . . 2 Drop 23 | . . . 5 . . 9 . 2 7 Fire 50 | . . . . . 5 14 1 7 23 Melee . | . . . . . . . . . . Ram 2 | . . . . . . . . . 2 Kick . | . . . . . . . . . . Crush 5 | . . . . . 4 . . . 1 Escape Stasis . | . . . . . . . . . . Rewire . | . . . . . . . . . . Trap . | . . . . . . . . . . Miscellaneous . | . . . . . . . . . . Route ------- -11/Scrapyard -10/Materials (discovered 2 exits: *Min x2) -10/Mines -10/Exiles (discovered 2 exits: [*Min x2]) -9/Mines -8/Materials -7/Factory -7/Lower Caves -7/Lower Caves (discovered 2 exits: [*Fac] / *Zio) -7/Zion History --------- Turn | Location | Event 21 | -11/Scrapyard | Discovered new exit (range 16) 62 | -11/Scrapyard | Entered Materials 77 | -10/Materials | Identified exit to Mines 163 | -10/Materials | Entered Mines 191 | -10/Mines | Deemed a non-threat by the Exiles lab entrance 192 | -10/Mines | Discovered new exit (range 5) 202 | -10/Mines | Entered Exiles 246 | -10/Exiles | Met 8R-AWN 273 | -10/Exiles | Met EX-HEX 311 | -10/Exiles | Build established: Mutant 362 | -10/Exiles | Met EX-DEC 372 | -10/Exiles | Learned location of Zion (-7) 418 | -10/Exiles | Met EX-BIN 441 | -10/Exiles | Aligned with FarCom system 442 | -10/Exiles | Given EX-Vault access code 498 | -10/Exiles | Opened EX-Vault 504 | -10/Exiles | Found Prototype Device 504 | -10/Exiles | Identified PSU Rigger 513 | -10/Exiles | Found Prototype Special Weapon 513 | -10/Exiles | Identified Field Lobotomy Kit 518 | -10/Exiles | Found Prototype Energy Cannon 518 | -10/Exiles | Identified Gui. Plasma Cannon 601 | -10/Exiles | Warned to stay clear of 0b10 Research branches 717 | -10/Exiles | Visited The Gauntlet 1072 | -10/Exiles | Discovered new exit (range 11) 1260 | -10/Exiles | Discovered new exit (range 14) 1486 | -10/Exiles | Left Exiles lab with Field Lobotomy Kit 1486 | -10/Exiles | Entered Mines 1501 | -9/Mines | Learned 2 Materials zone layouts 1574 | -9/Mines | Discovered new exit (range 13) 1604 | -9/Mines | Entered Materials 1604 | -8/Materials | Evolved 4 slots: Propulsion x2, Utility x2 2221 | -8/Materials | Discovered new exit (range 10) 2236 | -8/Materials | Entered Factory 2236 | -7/Factory | Evolved 2 slots: Power x1, Utility x1 2462 | -7/Factory | Garrison activated, responded to threat 2473 | -7/Factory | Assimilated Y-54 Guardian with FLK Orb 2497 | -7/Factory | Lost 3 parts (1p2n) 2675 | -7/Factory | Discovered new exit (range 11) 2698 | -7/Factory | Entered Lower Caves 2698 | -7/Lower Caves | Accompanied by 1 ally 2774 | -7/Lower Caves | Learned 8 Factory zone layouts 2920 | -7/Lower Caves | Assimilated P-60 Hacker with FLK Orb 3248 | -7/Lower Caves | Discovered new exit (range 9) 3263 | -7/Lower Caves | Entered another Lower Caves area 3263 | -7/Lower Caves | Accompanied by 2 allies 3640 | -7/Lower Caves | Discovered new exit (range 7) 3644 | -7/Lower Caves | Encountered a Warlord checkpoint 3978 | -7/Lower Caves | Hacker 4a assimilated hostile S-27 Virus 4330 | -7/Lower Caves | Attracted the attention of an 0b10 checkpoint 4345 | -7/Lower Caves | Discovered new exit (range 15) 4355 | -7/Lower Caves | Learned location of 1 exit from Factory 4764 | -7/Lower Caves | Entered Zion 4764 | -7/Zion | Accompanied by 2 allies 4958 | -7/Zion | Build established: Derelict-Mutant 4979 | -7/Zion | System corruption cleaned by Quarantine Array 5101 | -7/Zion | Received a hallucinogenic algorithm 5182 | -7/Zion | Found Prototype Device 5182 | -7/Zion | Identified Bomb Factory No. 2 6029 | -7/Zion | Build established: Hacker-Mutant 6174 | -7/Zion | Rebuked by Imprinter 6212 | -7/Zion | Attempted to imprint without authorization 6212 | -7/Zion | Attacked by Zionites 6351 | -7/Zion | Assimilated A6-YSS(p) with FLK Orb 6464 | -7/Zion | Lost 3 parts (1p1n1w) 6491 | -7/Zion | Core integrity fell below 50% 6496 | -7/Zion | Core integrity fell below 20% 6497 | -7/Zion | Destroyed by 0K-ZKY(l) with Ripper Last Messages --------------- 06493_ X7-UZR(z) suffers critical hit (Burn). 06493_ X7-UZR(z) overheating. 06493_ Lgt. Deuterium Engine destroyed. 06494_ X7-UZR(z) overheating. 06495_ Hacking Suite severed. 06495_ NR-YBN(z) suffers critical hit (Burn). 06495_ Critical hit (Smash). 06495_ Bomb Factory No. 2 destroyed. 06495_ Hacking Suite destroyed. 06495_ System corrupted by crushing effect (+1). 06495_ System corrupted by crushing effect (+5). 06495_ X7-UZR(z) overheating. 06496_ X7-UZR(z) heat damages Mak. Leg. 06496_ X7-3UG(z) scatters some of the Twisted Machinery. 06496_ Mak. Hacking Suite severed. 06496_ X7-UZR(z) overheating. 06496_ Slammed into 2C-H3I(z). 06497_ 7R-ZGS(z) destroyed. 06497_ X7-UZR(z) overheating. Map ----- +----------------------------------------------------+ | #?????####"##" "#"######?????????????????????????? | | #######"#""""# ##""""""?????????????????????????? | | ##""""""""""" """"""????????????????????????? | | #?#""" "" """????####???????????????? | | ###"" "" "#????#X ##??????????????? | | # "" "" ""###### #??????????????? | | " "" $""""""## ##?????????????? | | "" """""#" ##????????????? | | "" "" " "" """## # ###??????????? | | """ "" " "" " """"" #??????????? | | """" " "" " ##??????????? | | / "" #???????????? | | =% "" """""" #???????????? | | "" " """"""" ##???????????? | | """ "" ""##"#" """#???????????? | | """ ""##"#" ""##???????????? | | """"""#"""" "" "##????????????? | | "" """""""""""" "" ""#????????????? | | """" """ """"#""""" "" "" ""##???????????? | | """" """ """""" " z """###"????????? | | """ """""""????????? | | z """ "" ""#????????? | | z """" ""#????????? | | """""#"##"""#"" " z #"" """????????? | | """"""""""""""""" zs%lz""" "" ""#???????? | | """"""####"""""""""" " z@z""" """ ""#???????? | | "##"###??#####"##""""z zzz "" """" ""#???????? | | ""###????????##?##""" """"" "#????????? | | "##??????????????##"" dz """"#" "#????????? | | #"???????????????#"""" """""" "##???????? | | ###??????????????###"" """ ""#???????? | | ??????????????????#""" """" """#???????? | | ??????????????????#"" """" """""###???????? | | ????????????????###" """" """#"#?????????? | | ????????????????#""" """ ""####???#####?? | | ????????????????##""" "" """""#???# ### | | ?????????????????#""""" """"###?# " | | ?????????????????####"" " """"### " | | ????????????????????#"" " "" """""# | | ????????????????????#"" " % | | ????????????????????##" | | ????????????????????#"" """"""""# | | ????????????????????#"" " """##"""### """ | | ????????????????????#"" """" """#"###?# """" | | ????????????????????##" """" """""#??# "### | | ????????????????????#"" """" """"#??#####?? | | ????????????????????#"" " ""#????????? | | ????????????????????##" " ## ## "#????????? | | ????????????????????#"" " # # ""#???????? | | ????????????????????#"" """ "##???????? | +----------------------------------------------------+ Best States ------------- Heat Dissipation 34 Energy Generation 24 Energy Capacity 310 Matter Stores 305 Matter Capacity 400 Sight Range 16 Terrain Scan Density 10 Additional Mass Support 9 Armor Coverage 225 Evasion (%) 63 Targeting Accuracy 6 Recoil Reduction 2 Offensive Hacking 31 Item Schematics ----------------- Mak. Spear | -7/Zion | Archive Phase Shifter | -7/Zion | Archive Mak. Light Armor Plating | -7/Zion | Archive Mak. Hacking Suite | -7/Zion | Archive Component Analysis Suite | -7/Zion | Archive Bore Cannon | -7/Zion | Archive Imp. Medium Treads | -7/Zion | Archive Imp. Arc Projector | -7/Zion | Archive Force Field | -7/Zion | Archive Adv. Terrain Scan Processor | -7/Zion | Archive Corruption Screen | -7/Zion | Archive System Guard | -7/Zion | Archive Mak. Flight Unit | -7/Zion | Archive Adv. Plasma Cannon | -7/Zion | Archive Robot Schematics ------------------ A-02 Transporter | -7/Zion | Archive H-55 Commando | -7/Zion | Archive T-07 Excavator | -7/Zion | Archive Fabricated ------------ Nothing Alien Tech Used ----------------- None Achievements -------------- None Challenges ------------ None Game ------ Seed AntimissileThiefBoregun Manual? 0 Play Time 01:22:55 Cumulative 23.7 hours Start 2024.05.30 @ 15:56:42 End 2024.05.30 @ 18:08:06 Sessions 1 Manual Loads 0 Difficulty Rogue Special Mode None Game No. 35 Rogue 35 Adventurer 0 Explorer 0 Win Type - Total 0 Types 0/0/0/0/0/0/0/0/0 Lore% 19 Gallery% 30 Achievement% 19 Wizard Run 0 Options --------- Layout 1 ASCII 0 Keyboard 0 Movement Arrows Keybinds 0 Fullscreen 1 Font 16/SmallcapsGlow Map View 50x35 Zoom Use 0% Tactical HUD 1 Map Filters NONE Filters NONE Steam 1 RUN: 7fccb968-bfdc-404e-bb20-19a4811b8c9b